[Event "Titled Tuesday Blitz October 11 Early 2022"]
[White "Jovic, Stanoje"]
[Black "Mirzoev, Azer"]
[WhiteFideId "905020"]
[BlackFideId "13400304"]
[WhiteElo "2238"]
[BlackElo "2525"]
[Result "0-1"]
[Round "11"]
[TimeControl "180+1"]
[Date "2022.10.12"]
[WhiteClock "0:00:01"]
[BlackClock "0:00:57"]

1. c4 {[%clk 0:03:00]}  e5 {[%clk 0:02:59]} 2. g3 {[%clk 0:03:01]}  Nc6 {[%clk 0:03:00]} 3. Bg2 {[%clk 0:03:01]}  h5 {[%clk 0:03:00]} 4. Nc3 {[%clk 0:02:57]}  h4 {[%clk 0:02:59]} 5. d3 {[%clk 0:02:49]}  Bc5 {[%clk 0:02:58]} 6. Ne4 {[%clk 0:02:36]}  Bb4+ {[%clk 0:02:55]} 7. Bd2 {[%clk 0:02:35]}  Bxd2+ {[%clk 0:02:54]} 8. Qxd2 {[%clk 0:02:35]}  d6 {[%clk 0:02:55]} 9. h3 {[%clk 0:02:33]}  hxg3 {[%clk 0:02:54]} 10. fxg3 {[%clk 0:02:32]}  Nf6 {[%clk 0:02:48]} 11. Ng5 {[%clk 0:02:26]}  Qe7 {[%clk 0:02:44]} 12. e4 {[%clk 0:02:21]}  Bd7 {[%clk 0:02:43]} 13. N1f3 {[%clk 0:02:19]}  O-O-O {[%clk 0:02:42]} 14. b4 {[%clk 0:02:08]}  Nh5 {[%clk 0:02:35]} 15. b5 {[%clk 0:01:56]}  Nd4 {[%clk 0:02:35]} 16. Nxd4 {[%clk 0:01:53]}  exd4 {[%clk 0:02:36]} 17. g4 {[%clk 0:01:37]}  Nf6 {[%clk 0:02:24]} 18. Nf3 {[%clk 0:01:32]}  d5 {[%clk 0:02:23]} 19. g5 {[%clk 0:01:08]}  Nxe4 {[%clk 0:02:17]} 20. dxe4 {[%clk 0:01:06]}  dxe4 {[%clk 0:02:18]} 21. Nxd4 {[%clk 0:01:00]}  e3 {[%clk 0:02:16]} 22. Qb2 {[%clk 0:00:57]}  Qxg5 {[%clk 0:02:11]} 23. O-O {[%clk 0:00:41]}  Rxh3 {[%clk 0:02:05]} 24. Nf3 {[%clk 0:00:33]}  Qg3 {[%clk 0:01:52]} 25. Qe5 {[%clk 0:00:27]}  Rdh8 {[%clk 0:01:29]} 26. Qxg3 {[%clk 0:00:24]}  Rxg3 {[%clk 0:01:29]} 27. Rae1 {[%clk 0:00:22]}  Bh3 {[%clk 0:01:16]} 28. Re2 {[%clk 0:00:17]}  f5 {[%clk 0:01:11]} 29. Ne5 {[%clk 0:00:15]}  g5 {[%clk 0:01:09]} 30. Nf7 {[%clk 0:00:10]}  Rh7 {[%clk 0:01:07]} 31. Ne5 {[%clk 0:00:07]}  f4 {[%clk 0:01:06]} 32. Nf3 {[%clk 0:00:04]}  Bg4 {[%clk 0:01:01]} 33. Rfe1 {[%clk 0:00:02]}  c5 {[%clk 0:01:00]} 34. Nh2 {[%clk 0:00:01]}  Bxe2 {[%clk 0:00:59]} 35. Rxe2 {[%clk 0:00:01]}  g4 {[%clk 0:00:57]} 0-1


[Site "https://www.chess.com"]

[Event "Titled Tuesday Blitz October 11 Early 2022"]
[White "Kaidanov, Gregory"]
[Black "Timofeev, Artyom"]
[WhiteFideId "2008564"]
[BlackFideId "4140419"]
[WhiteElo "2661"]
[BlackElo "2579"]
[Result "0-1"]
[Round "11"]
[TimeControl "180+1"]
[Date "2022.10.11"]
[WhiteClock "0:00:09"]
[BlackClock "0:00:40"]

1. Nf3 {[%clk 0:03:00]}  Nf6 {[%clk 0:02:59]} 2. g3 {[%clk 0:03:00]}  g6 {[%clk 0:02:59]} 3. b3 {[%clk 0:03:00]}  Bg7 {[%clk 0:02:59]} 4. Bb2 {[%clk 0:03:01]}  O-O {[%clk 0:02:57]} 5. Bg2 {[%clk 0:03:00]}  d6 {[%clk 0:02:57]} 6. d4 {[%clk 0:02:59]}  Ne4 {[%clk 0:02:56]} 7. O-O {[%clk 0:02:57]}  c5 {[%clk 0:02:54]} 8. c4 {[%clk 0:02:56]}  Nc6 {[%clk 0:02:52]} 9. Nbd2 {[%clk 0:02:52]}  Bf5 {[%clk 0:02:52]} 10. Nh4 {[%clk 0:02:45]}  Nxd2 {[%clk 0:02:49]} 11. Qxd2 {[%clk 0:02:45]}  Nxd4 {[%clk 0:02:39]} 12. Nxf5 {[%clk 0:02:41]}  Nxf5 {[%clk 0:02:39]} 13. Bxg7 {[%clk 0:02:37]}  Kxg7 {[%clk 0:02:38]} 14. Bxb7 {[%clk 0:02:37]}  Rb8 {[%clk 0:02:37]} 15. Bg2 {[%clk 0:02:37]}  a5 {[%clk 0:02:36]} 16. e3 {[%clk 0:02:33]}  Qb6 {[%clk 0:02:33]} 17. Rab1 {[%clk 0:02:31]}  Qb4 {[%clk 0:02:31]} 18. Qb2+ {[%clk 0:02:30]}  Kg8 {[%clk 0:02:31]} 19. a3 {[%clk 0:02:30]}  Qb6 {[%clk 0:02:30]} 20. Qc3 {[%clk 0:02:30]}  Ng7 {[%clk 0:02:21]} 21. Rb2 {[%clk 0:02:29]}  Qc7 {[%clk 0:02:17]} 22. f4 {[%clk 0:02:18]}  e6 {[%clk 0:02:13]} 23. Rd1 {[%clk 0:02:15]}  Rfd8 {[%clk 0:02:11]} 24. Be4 {[%clk 0:02:04]}  h5 {[%clk 0:01:53]} 25. Rbd2 {[%clk 0:02:02]}  Qb6 {[%clk 0:01:40]} 26. Bc2 {[%clk 0:02:02]}  Ne8 {[%clk 0:01:34]} 27. e4 {[%clk 0:01:59]}  Qc7 {[%clk 0:01:27]} 28. h3 {[%clk 0:01:43]}  Ra8 {[%clk 0:01:19]} 29. g4 {[%clk 0:01:39]}  h4 {[%clk 0:01:18]} 30. Rf1 {[%clk 0:01:30]}  Qe7 {[%clk 0:01:16]} 31. g5 {[%clk 0:01:16]}  Ng7 {[%clk 0:01:12]} 32. Qe3 {[%clk 0:01:09]}  Nh5 {[%clk 0:01:09]} 33. Qf3 {[%clk 0:00:48]}  e5 {[%clk 0:01:06]} 34. fxe5 {[%clk 0:00:45]}  dxe5 {[%clk 0:01:02]} 35. Rg2 {[%clk 0:00:19]}  Nf4 {[%clk 0:00:58]} 36. Rg4 {[%clk 0:00:18]}  Rd2 {[%clk 0:00:57]} 37. Bd1 {[%clk 0:00:18]}  Rad8 {[%clk 0:00:55]} 38. Rxh4 {[%clk 0:00:15]}  Qd7 {[%clk 0:00:45]} 39. Rxf4 {[%clk 0:00:08]}  exf4 {[%clk 0:00:42]} 40. Qxf4 {[%clk 0:00:09]}  Rxd1 {[%clk 0:00:40]} 0-1


[Site "https://www.chess.com"]

[Event "Titled Tuesday Blitz October 11 Early 2022"]
[White "Kalajzic, Ivan"]
[Black "Manon-og, Ramon Jr."]
[WhiteFideId "14506378"]
[BlackFideId "5200776"]
[WhiteElo "2163"]
[BlackElo "2252"]
[Result "1-0"]
[Round "11"]
[TimeControl "180+1"]
[Date "2022.10.12"]
[WhiteClock "0:01:45"]
[BlackClock "0:01:29"]

1. d4 {[%clk 0:02:54]}  Nf6 {[%clk 0:02:59]} 2. Nc3 {[%clk 0:02:53]}  g6 {[%clk 0:03:00]} 3. e4 {[%clk 0:02:50]}  d5 {[%clk 0:02:59]} 4. e5 {[%clk 0:02:49]}  Ne4 {[%clk 0:02:59]} 5. Bd3 {[%clk 0:02:46]}  Nxc3 {[%clk 0:02:57]} 6. bxc3 {[%clk 0:02:47]}  Bg7 {[%clk 0:02:57]} 7. f4 {[%clk 0:02:46]}  O-O {[%clk 0:02:57]} 8. Ne2 {[%clk 0:02:46]}  c5 {[%clk 0:02:56]} 9. Ng3 {[%clk 0:02:44]}  c4 {[%clk 0:02:56]} 10. Be2 {[%clk 0:02:44]}  e6 {[%clk 0:02:50]} 11. h4 {[%clk 0:02:43]}  Nc6 {[%clk 0:02:43]} 12. h5 {[%clk 0:02:39]}  Ne7 {[%clk 0:02:43]} 13. h6 {[%clk 0:02:37]}  Bh8 {[%clk 0:02:43]} 14. Be3 {[%clk 0:02:36]}  f6 {[%clk 0:02:44]} 15. Qd2 {[%clk 0:02:32]}  fxe5 {[%clk 0:02:43]} 16. fxe5 {[%clk 0:02:32]}  Qa5 {[%clk 0:02:35]} 17. Bg5 {[%clk 0:02:28]}  Nf5 {[%clk 0:02:34]} 18. Nf1 {[%clk 0:02:21]}  Rf7 {[%clk 0:02:19]} 19. g4 {[%clk 0:02:16]}  Ne7 {[%clk 0:02:20]} 20. Ne3 {[%clk 0:02:02]}  Bd7 {[%clk 0:02:14]} 21. Bxe7 {[%clk 0:02:01]}  Rxe7 {[%clk 0:02:12]} 22. O-O {[%clk 0:02:01]}  Rf8 {[%clk 0:02:00]} 23. g5 {[%clk 0:02:01]}  Ref7 {[%clk 0:01:59]} 24. Rxf7 {[%clk 0:01:57]}  Rxf7 {[%clk 0:02:00]} 25. Ng4 {[%clk 0:01:57]}  Rf5 {[%clk 0:01:53]} 26. Nf6+ {[%clk 0:01:51]}  Bxf6 {[%clk 0:01:51]} 27. exf6 {[%clk 0:01:51]}  Qc7 {[%clk 0:01:45]} 28. Kg2 {[%clk 0:01:46]}  Kf7 {[%clk 0:01:30]} 29. Bg4 {[%clk 0:01:46]}  Rf3 {[%clk 0:01:29]} 30. Bxf3 {[%clk 0:01:45]} 1-0


[Site "https://www.chess.com"]

[Event "Titled Tuesday Blitz October 11 Early 2022"]
[White "Korchmar, Vasiliy"]
[Black "Yuan, Qingyu"]
[WhiteFideId "24131750"]
[BlackFideId "8609772"]
[WhiteElo "2370"]
[BlackElo "2359"]
[Result "0-1"]
[Round "11"]
[TimeControl "180+1"]
[Date "2022.10.12"]
[WhiteClock "0:00:01"]
[BlackClock "0:00:02"]

1. e4 {[%clk 0:03:00]}  c6 {[%clk 0:02:59]} 2. d4 {[%clk 0:03:00]}  d5 {[%clk 0:03:00]} 3. e5 {[%clk 0:03:01]}  c5 {[%clk 0:03:01]} 4. dxc5 {[%clk 0:03:00]}  e6 {[%clk 0:03:01]} 5. Be3 {[%clk 0:03:00]}  Nd7 {[%clk 0:03:01]} 6. Bb5 {[%clk 0:02:58]}  Ne7 {[%clk 0:03:00]} 7. c3 {[%clk 0:02:50]}  Nc6 {[%clk 0:03:00]} 8. b4 {[%clk 0:02:39]}  Ndxe5 {[%clk 0:02:35]} 9. Nf3 {[%clk 0:02:37]}  Bd7 {[%clk 0:02:28]} 10. O-O {[%clk 0:02:36]}  Be7 {[%clk 0:02:21]} 11. Bd4 {[%clk 0:02:27]}  O-O {[%clk 0:02:11]} 12. Nxe5 {[%clk 0:02:15]}  Nxe5 {[%clk 0:02:11]} 13. Bxd7 {[%clk 0:01:49]}  Nxd7 {[%clk 0:02:12]} 14. Nd2 {[%clk 0:01:50]}  b6 {[%clk 0:01:36]} 15. c6 {[%clk 0:01:48]}  e5 {[%clk 0:01:22]} 16. Be3 {[%clk 0:01:45]}  Nf6 {[%clk 0:01:02]} 17. b5 {[%clk 0:01:46]}  d4 {[%clk 0:01:00]} 18. cxd4 {[%clk 0:01:47]}  exd4 {[%clk 0:00:59]} 19. Bg5 {[%clk 0:01:47]}  Qd5 {[%clk 0:00:52]} 20. Bxf6 {[%clk 0:01:47]}  Bxf6 {[%clk 0:00:53]} 21. a4 {[%clk 0:01:48]}  d3 {[%clk 0:00:50]} 22. Rc1 {[%clk 0:01:48]}  a6 {[%clk 0:00:50]} 23. Nc4 {[%clk 0:01:01]}  Qd4 {[%clk 0:00:33]} 24. c7 {[%clk 0:00:37]}  axb5 {[%clk 0:00:29]} 25. axb5 {[%clk 0:00:38]}  Rfc8 {[%clk 0:00:23]} 26. Ne3 {[%clk 0:00:28]}  Ra7 {[%clk 0:00:18]} 27. Rc4 {[%clk 0:00:21]}  Qd7 {[%clk 0:00:15]} 28. Qf3 {[%clk 0:00:11]}  Raxc7 {[%clk 0:00:14]} 29. Rxc7 {[%clk 0:00:12]}  Rxc7 {[%clk 0:00:15]} 30. Nd5 {[%clk 0:00:13]}  Rc5 {[%clk 0:00:10]} 31. Nxb6 {[%clk 0:00:07]}  Qd8 {[%clk 0:00:03]} 32. Nd7 {[%clk 0:00:01]}  Qxd7 {[%clk 0:00:03]} 33. b6 {[%clk 0:00:01]}  Rb5 {[%clk 0:00:02]} 0-1


[Site "https://www.chess.com"]

[Event "Titled Tuesday Blitz October 11 Early 2022"]
[White "Krzywda, Andrzej"]
[Black "Martic, Ivan"]
[WhiteFideId "1114565"]
[BlackFideId "929301"]
[WhiteElo "2149"]
[BlackElo "2355"]
[Result "0-1"]
[Round "11"]
[TimeControl "180+1"]
[Date "2022.10.12"]
[WhiteClock "0:00:05"]
[BlackClock "0:01:06"]

1. d4 {[%clk 0:03:00]}  Nf6 {[%clk 0:02:17]} 2. c4 {[%clk 0:02:59]}  c5 {[%clk 0:02:13]} 3. d5 {[%clk 0:02:59]}  b5 {[%clk 0:02:13]} 4. cxb5 {[%clk 0:02:59]}  a6 {[%clk 0:02:12]} 5. e3 {[%clk 0:03:00]}  Bb7 {[%clk 0:02:07]} 6. Nc3 {[%clk 0:02:59]}  e6 {[%clk 0:02:07]} 7. dxe6 {[%clk 0:02:47]}  fxe6 {[%clk 0:02:06]} 8. Nf3 {[%clk 0:02:48]}  d5 {[%clk 0:02:06]} 9. Be2 {[%clk 0:02:48]}  Bd6 {[%clk 0:02:06]} 10. O-O {[%clk 0:02:48]}  O-O {[%clk 0:02:06]} 11. a4 {[%clk 0:02:48]}  Qe7 {[%clk 0:02:04]} 12. Qc2 {[%clk 0:02:47]}  e5 {[%clk 0:01:56]} 13. e4 {[%clk 0:02:23]}  d4 {[%clk 0:01:41]} 14. Bc4+ {[%clk 0:02:22]}  Kh8 {[%clk 0:01:40]} 15. Nd5 {[%clk 0:01:51]}  Nxd5 {[%clk 0:01:40]} 16. Bxd5 {[%clk 0:01:45]}  Bxd5 {[%clk 0:01:40]} 17. exd5 {[%clk 0:01:46]}  axb5 {[%clk 0:01:40]} 18. Ng5 {[%clk 0:01:42]}  g6 {[%clk 0:01:32]} 19. Ne4 {[%clk 0:01:42]}  Nd7 {[%clk 0:01:27]} 20. Bg5 {[%clk 0:01:37]}  Nf6 {[%clk 0:01:24]} 21. Nxf6 {[%clk 0:01:33]}  Rxf6 {[%clk 0:01:25]} 22. axb5 {[%clk 0:01:32]}  Raf8 {[%clk 0:01:24]} 23. b6 {[%clk 0:01:28]}  e4 {[%clk 0:01:24]} 24. Ra7 {[%clk 0:01:26]}  Qe5 {[%clk 0:01:23]} 25. Bxf6+ {[%clk 0:01:24]}  Rxf6 {[%clk 0:01:22]} 26. g3 {[%clk 0:01:23]}  e3 {[%clk 0:01:21]} 27. Raa1 {[%clk 0:00:13]}  Qxd5 {[%clk 0:01:16]} 28. fxe3 {[%clk 0:00:10]}  d3 {[%clk 0:01:17]} 29. Qg2 {[%clk 0:00:08]}  Qe5 {[%clk 0:01:12]} 30. b7 {[%clk 0:00:08]}  Qxe3+ {[%clk 0:01:11]} 31. Kh1 {[%clk 0:00:08]}  d2 {[%clk 0:01:11]} 32. Ra8+ {[%clk 0:00:08]}  Kg7 {[%clk 0:01:11]} 33. b8=Q {[%clk 0:00:08]}  Bxb8 {[%clk 0:01:09]} 34. Rxb8 {[%clk 0:00:09]}  Rxf1+ {[%clk 0:01:09]} 35. Qxf1 {[%clk 0:00:10]}  Qe1 {[%clk 0:01:09]} 36. Kg2 {[%clk 0:00:04]}  Qxf1+ {[%clk 0:01:09]} 37. Kxf1 {[%clk 0:00:04]}  d1=Q+ {[%clk 0:01:09]} 38. Kg2 {[%clk 0:00:05]}  Qe2+ {[%clk 0:01:10]} 39. Kh3 {[%clk 0:00:05]}  Qe6+ {[%clk 0:01:06]} 0-1


[Site "https://www.chess.com"]

[Event "Titled Tuesday Blitz October 11 Early 2022"]
[White "Lakshmi C"]
[Black "Matveeva, Olga"]
[WhiteFideId "25035347"]
[BlackFideId "24107018"]
[WhiteElo "1865"]
[BlackElo "2055"]
[Result "1-0"]
[Round "11"]
[TimeControl "180+1"]
[Date "2022.10.12"]
[WhiteClock "0:00:15"]
[BlackClock "0:00:49"]

1. e4 {[%clk 0:03:00]}  c6 {[%clk 0:02:59]} 2. Nc3 {[%clk 0:02:59]}  d5 {[%clk 0:03:00]} 3. Nf3 {[%clk 0:02:56]}  Bg4 {[%clk 0:02:58]} 4. h3 {[%clk 0:02:56]}  Bxf3 {[%clk 0:02:58]} 5. Qxf3 {[%clk 0:02:55]}  e6 {[%clk 0:02:59]} 6. d4 {[%clk 0:02:55]}  Nd7 {[%clk 0:02:53]} 7. exd5 {[%clk 0:02:50]}  cxd5 {[%clk 0:02:49]} 8. Bd3 {[%clk 0:02:40]}  Ngf6 {[%clk 0:02:46]} 9. O-O {[%clk 0:02:38]}  Bd6 {[%clk 0:02:41]} 10. Nb5 {[%clk 0:02:37]}  Bb8 {[%clk 0:02:40]} 11. Bf4 {[%clk 0:02:06]}  O-O {[%clk 0:02:31]} 12. Bxb8 {[%clk 0:01:37]}  Qxb8 {[%clk 0:02:32]} 13. c4 {[%clk 0:01:35]}  dxc4 {[%clk 0:02:28]} 14. Bxc4 {[%clk 0:01:35]}  a6 {[%clk 0:02:28]} 15. Nc3 {[%clk 0:01:34]}  b5 {[%clk 0:02:27]} 16. Bd3 {[%clk 0:01:32]}  Nb6 {[%clk 0:02:27]} 17. Ne4 {[%clk 0:01:29]}  Nbd5 {[%clk 0:02:23]} 18. Nc5 {[%clk 0:01:12]}  Rd8 {[%clk 0:02:20]} 19. Rfd1 {[%clk 0:01:05]}  Qf4 {[%clk 0:02:17]} 20. Qxf4 {[%clk 0:00:57]}  Nxf4 {[%clk 0:02:18]} 21. Bf1 {[%clk 0:00:56]}  Kf8 {[%clk 0:02:06]} 22. a4 {[%clk 0:00:55]}  bxa4 {[%clk 0:01:47]} 23. Rxa4 {[%clk 0:00:39]}  Rab8 {[%clk 0:01:40]} 24. b4 {[%clk 0:00:29]}  N6d5 {[%clk 0:01:36]} 25. Nxa6 {[%clk 0:00:28]}  Rb6 {[%clk 0:01:24]} 26. Rc1 {[%clk 0:00:20]}  g5 {[%clk 0:01:12]} 27. b5 {[%clk 0:00:20]}  h5 {[%clk 0:01:08]} 28. Nc5 {[%clk 0:00:16]}  Kg7 {[%clk 0:01:06]} 29. Ra7 {[%clk 0:00:15]}  Kf6 {[%clk 0:01:03]} 30. Nd7+ {[%clk 0:00:15]}  Rxd7 {[%clk 0:01:01]} 31. Rxd7 {[%clk 0:00:15]}  h4 {[%clk 0:01:01]} 32. g3 {[%clk 0:00:14]}  hxg3 {[%clk 0:01:00]} 33. fxg3 {[%clk 0:00:14]}  Ng6 {[%clk 0:00:59]} 34. Rc6 {[%clk 0:00:14]}  Rb8 {[%clk 0:00:57]} 35. Rxd5 {[%clk 0:00:14]}  Ne7 {[%clk 0:00:52]} 36. Rdc5 {[%clk 0:00:14]}  Nxc6 {[%clk 0:00:49]} 37. bxc6 {[%clk 0:00:14]}  Ke7 {[%clk 0:00:49]} 38. c7 {[%clk 0:00:14]}  Rc8 {[%clk 0:00:49]} 39. Ba6 {[%clk 0:00:15]} 1-0


[Site "https://www.chess.com"]

[Event "Titled Tuesday Blitz October 11 Early 2022"]
[White "Migot, Tangi"]
[Black "Subelj, Jan"]
[WhiteFideId "662445"]
[BlackFideId "14618583"]
[WhiteElo "2507"]
[BlackElo "2394"]
[Result "0-1"]
[Round "11"]
[TimeControl "180+1"]
[Date "2022.10.12"]
[WhiteClock "0:00:05"]
[BlackClock "0:01:05"]

1. e4 {[%clk 0:03:00]}  c6 {[%clk 0:02:52]} 2. Nc3 {[%clk 0:03:00]}  d5 {[%clk 0:02:53]} 3. d4 {[%clk 0:03:00]}  e6 {[%clk 0:02:51]} 4. Nf3 {[%clk 0:03:00]}  Bb4 {[%clk 0:02:50]} 5. e5 {[%clk 0:02:59]}  c5 {[%clk 0:02:50]} 6. a3 {[%clk 0:02:59]}  Bxc3+ {[%clk 0:02:50]} 7. bxc3 {[%clk 0:03:00]}  Qa5 {[%clk 0:02:47]} 8. Be2 {[%clk 0:02:51]}  c4 {[%clk 0:02:36]} 9. O-O {[%clk 0:02:46]}  Qa4 {[%clk 0:02:35]} 10. Rb1 {[%clk 0:02:43]}  Nc6 {[%clk 0:02:33]} 11. Ng5 {[%clk 0:02:42]}  h6 {[%clk 0:02:33]} 12. Nh3 {[%clk 0:02:41]}  Nge7 {[%clk 0:02:32]} 13. Nf4 {[%clk 0:02:38]}  b6 {[%clk 0:02:30]} 14. Nh5 {[%clk 0:02:38]}  Rg8 {[%clk 0:02:31]} 15. f4 {[%clk 0:02:38]}  Bd7 {[%clk 0:02:31]} 16. g4 {[%clk 0:02:31]}  O-O-O {[%clk 0:02:30]} 17. Bf3 {[%clk 0:02:22]}  Rdf8 {[%clk 0:02:29]} 18. Bg2 {[%clk 0:02:20]}  f5 {[%clk 0:02:29]} 19. exf6 {[%clk 0:02:17]}  gxf6 {[%clk 0:02:30]} 20. Ng3 {[%clk 0:02:10]}  f5 {[%clk 0:02:14]} 21. g5 {[%clk 0:02:10]}  hxg5 {[%clk 0:02:09]} 22. fxg5 {[%clk 0:02:11]}  Ng6 {[%clk 0:02:09]} 23. Nxf5 {[%clk 0:01:52]}  Rxf5 {[%clk 0:01:56]} 24. Rxf5 {[%clk 0:01:50]}  exf5 {[%clk 0:01:57]} 25. Bxd5 {[%clk 0:01:49]}  Rh8 {[%clk 0:01:57]} 26. Bf7 {[%clk 0:01:44]}  Nce7 {[%clk 0:01:55]} 27. Qe2 {[%clk 0:01:32]}  Qc6 {[%clk 0:01:46]} 28. Rb4 {[%clk 0:01:09]}  b5 {[%clk 0:01:45]} 29. a4 {[%clk 0:01:07]}  a6 {[%clk 0:01:45]} 30. axb5 {[%clk 0:01:07]}  axb5 {[%clk 0:01:46]} 31. Rb1 {[%clk 0:00:34]}  Nh4 {[%clk 0:01:39]} 32. Bf4 {[%clk 0:00:31]}  Neg6 {[%clk 0:01:31]} 33. Bg3 {[%clk 0:00:18]}  f4 {[%clk 0:01:27]} 34. d5 {[%clk 0:00:16]}  Qd6 {[%clk 0:01:23]} 35. Bf2 {[%clk 0:00:13]}  f3 {[%clk 0:01:23]} 36. Qe3 {[%clk 0:00:08]}  Nf5 {[%clk 0:01:22]} 37. Qc5+ {[%clk 0:00:08]}  Qxc5 {[%clk 0:01:22]} 38. Bxc5 {[%clk 0:00:09]}  Ne5 {[%clk 0:01:21]} 39. g6 {[%clk 0:00:07]}  Nxg6 {[%clk 0:01:16]} 40. Bxg6 {[%clk 0:00:06]}  Rg8 {[%clk 0:01:17]} 41. Kf2 {[%clk 0:00:07]}  Rxg6 {[%clk 0:01:16]} 42. Kxf3 {[%clk 0:00:08]}  Nh4+ {[%clk 0:01:16]} 43. Kf4 {[%clk 0:00:08]}  Rg2 {[%clk 0:01:16]} 44. Ra1 {[%clk 0:00:06]}  Rg4+ {[%clk 0:01:11]} 45. Ke5 {[%clk 0:00:05]}  Nf3+ {[%clk 0:01:08]} 46. Kd6 {[%clk 0:00:05]}  Rg6+ {[%clk 0:01:08]} 47. Ke7 {[%clk 0:00:05]}  Ne5 {[%clk 0:01:04]} 48. Ra8+ {[%clk 0:00:04]}  Kb7 {[%clk 0:01:04]} 49. Ra7+ {[%clk 0:00:05]}  Kb8 {[%clk 0:01:05]} 0-1


[Site "https://www.chess.com"]

[Event "Titled Tuesday Blitz October 11 Early 2022"]
[White "Mindlin, Alon"]
[Black "Haitin, Ilja"]
[WhiteFideId "2800071"]
[BlackFideId "4501764"]
[WhiteElo "2417"]
[BlackElo "2221"]
[Result "0-1"]
[Round "11"]
[TimeControl "180+1"]
[Date "2022.10.12"]
[WhiteClock "0:02:03"]
[BlackClock "0:02:10"]

1. e4 {[%clk 0:03:00]}  d6 {[%clk 0:02:59]} 2. d4 {[%clk 0:03:00]}  Nf6 {[%clk 0:03:00]} 3. Nc3 {[%clk 0:03:01]}  e5 {[%clk 0:02:59]} 4. Nf3 {[%clk 0:02:58]}  Nbd7 {[%clk 0:02:59]} 5. g4 {[%clk 0:02:59]}  g6 {[%clk 0:02:58]} 6. g5 {[%clk 0:02:58]}  Nh5 {[%clk 0:02:58]} 7. Bc4 {[%clk 0:02:47]}  Bg7 {[%clk 0:02:57]} 8. Be3 {[%clk 0:02:48]}  O-O {[%clk 0:02:56]} 9. Qd2 {[%clk 0:02:47]}  c6 {[%clk 0:02:55]} 10. O-O-O {[%clk 0:02:47]}  b5 {[%clk 0:02:55]} 11. Be2 {[%clk 0:02:46]}  b4 {[%clk 0:02:52]} 12. Na4 {[%clk 0:02:46]}  Qa5 {[%clk 0:02:47]} 13. b3 {[%clk 0:02:47]}  Nb6 {[%clk 0:02:46]} 14. Nxb6 {[%clk 0:02:39]}  axb6 {[%clk 0:02:40]} 15. a4 {[%clk 0:02:39]}  b5 {[%clk 0:02:31]} 16. dxe5 {[%clk 0:02:06]}  bxa4 {[%clk 0:02:20]} 17. Qxd6 {[%clk 0:02:05]}  axb3 {[%clk 0:02:13]} 18. cxb3 {[%clk 0:02:03]}  Qa1+ {[%clk 0:02:10]} 0-1


[Site "https://www.chess.com"]

[Event "Titled Tuesday Blitz October 11 Early 2022"]
[White "Namitbir Singh Walia"]
[Black "Orlov, Georgi"]
[WhiteFideId "35071068"]
[BlackFideId "2011271"]
[WhiteElo "2239"]
[BlackElo "2568"]
[Result "1-0"]
[Round "11"]
[TimeControl "180+1"]
[Date "2022.10.12"]
[WhiteClock "0:00:09"]
[BlackClock "0:00:09"]

1. d4 {[%clk 0:03:00]}  Nf6 {[%clk 0:01:59]} 2. c4 {[%clk 0:02:59]}  Nc6 {[%clk 0:01:58]} 3. d5 {[%clk 0:02:57]}  Ne5 {[%clk 0:01:57]} 4. b3 {[%clk 0:02:52]}  e6 {[%clk 0:01:57]} 5. dxe6 {[%clk 0:02:51]}  fxe6 {[%clk 0:01:55]} 6. Bb2 {[%clk 0:02:51]}  Bb4+ {[%clk 0:01:55]} 7. Bc3 {[%clk 0:02:44]}  Qe7 {[%clk 0:01:54]} 8. Nf3 {[%clk 0:02:43]}  Neg4 {[%clk 0:01:50]} 9. Qd2 {[%clk 0:02:37]}  a5 {[%clk 0:01:48]} 10. Qc2 {[%clk 0:02:00]}  d5 {[%clk 0:01:09]} 11. h3 {[%clk 0:01:48]}  Nh6 {[%clk 0:01:09]} 12. e3 {[%clk 0:01:45]}  Ne4 {[%clk 0:01:04]} 13. a3 {[%clk 0:01:37]}  Bxc3+ {[%clk 0:01:00]} 14. Nxc3 {[%clk 0:01:36]}  Nxc3 {[%clk 0:00:47]} 15. Qxc3 {[%clk 0:01:36]}  Nf5 {[%clk 0:00:42]} 16. Bd3 {[%clk 0:01:29]}  O-O {[%clk 0:00:42]} 17. O-O {[%clk 0:01:24]}  c6 {[%clk 0:00:40]} 18. c5 {[%clk 0:01:19]}  Nh4 {[%clk 0:00:39]} 19. Nxh4 {[%clk 0:01:13]}  Qxh4 {[%clk 0:00:39]} 20. Qe5 {[%clk 0:01:09]}  Qf6 {[%clk 0:00:38]} 21. f4 {[%clk 0:01:02]}  Qxe5 {[%clk 0:00:36]} 22. fxe5 {[%clk 0:01:03]}  Bd7 {[%clk 0:00:37]} 23. g4 {[%clk 0:00:57]}  g5 {[%clk 0:00:33]} 24. Kg2 {[%clk 0:00:52]}  Kg7 {[%clk 0:00:32]} 25. Kg3 {[%clk 0:00:52]}  h6 {[%clk 0:00:32]} 26. h4 {[%clk 0:00:45]}  gxh4+ {[%clk 0:00:32]} 27. Kxh4 {[%clk 0:00:46]}  Rab8 {[%clk 0:00:30]} 28. g5 {[%clk 0:00:38]}  Rxf1 {[%clk 0:00:14]} 29. Rxf1 {[%clk 0:00:37]}  Rh8 {[%clk 0:00:14]} 30. g6 {[%clk 0:00:19]}  Rf8 {[%clk 0:00:14]} 31. Rxf8 {[%clk 0:00:05]}  Kxf8 {[%clk 0:00:13]} 32. Kh5 {[%clk 0:00:06]}  Kg7 {[%clk 0:00:14]} 33. Bc2 {[%clk 0:00:06]}  Bc8 {[%clk 0:00:13]} 34. Bd3 {[%clk 0:00:06]}  Bd7 {[%clk 0:00:14]} 35. Bc2 {[%clk 0:00:07]}  Bc8 {[%clk 0:00:14]} 36. Bb1 {[%clk 0:00:08]}  Bd7 {[%clk 0:00:14]} 37. e4 {[%clk 0:00:08]}  Be8 {[%clk 0:00:15]} 38. exd5 {[%clk 0:00:08]}  cxd5 {[%clk 0:00:14]} 39. Bd3 {[%clk 0:00:08]}  Bd7 {[%clk 0:00:14]} 40. b4 {[%clk 0:00:09]}  axb4 {[%clk 0:00:14]} 41. axb4 {[%clk 0:00:09]}  Ba4 {[%clk 0:00:14]} 42. b5 {[%clk 0:00:10]}  Bd1+ {[%clk 0:00:13]} 43. Kh4 {[%clk 0:00:10]}  Ba4 {[%clk 0:00:12]} 44. c6 {[%clk 0:00:09]}  Bxb5 {[%clk 0:00:09]} 45. cxb7 {[%clk 0:00:08]}  Bxd3 {[%clk 0:00:09]} 46. b8=Q {[%clk 0:00:09]}  Bxg6 {[%clk 0:00:09]} 47. Qc7+ {[%clk 0:00:09]}  Bf7 {[%clk 0:00:09]} 48. Qe7 {[%clk 0:00:09]}  Kg6 {[%clk 0:00:09]} 49. Qf6+ {[%clk 0:00:09]} 1-0


[Site "https://www.chess.com"]